[Event "Titled Tuesday Blitz July 26 Early 2022"]
[White "Navarrete Mendez, Gonzalo Alberto"]
[Black "Ulasevich, Sergei"]
[WhiteFideId "5106850"]
[BlackFideId "13505629"]
[WhiteElo "2261"]
[BlackElo "2151"]
[Result "0-1"]
[Round "04"]
[TimeControl "180+1"]
[Date "2022.07.27"]
[WhiteClock "0:00:02"]
[BlackClock "0:00:09"]

1. e4 {[%clk 0:03:00]}  e6 {[%clk 0:02:59]} 2. d4 {[%clk 0:03:00]}  d5 {[%clk 0:02:58]} 3. Nc3 {[%clk 0:03:01]}  Nf6 {[%clk 0:02:55]} 4. Bg5 {[%clk 0:03:00]}  h6 {[%clk 0:02:54]} 5. Bxf6 {[%clk 0:03:00]}  Qxf6 {[%clk 0:02:55]} 6. exd5 {[%clk 0:03:00]}  Bb4 {[%clk 0:02:55]} 7. dxe6 {[%clk 0:02:58]}  Bxe6 {[%clk 0:02:56]} 8. Nf3 {[%clk 0:02:59]}  Nc6 {[%clk 0:02:51]} 9. a3 {[%clk 0:02:52]}  Bxc3+ {[%clk 0:02:33]} 10. bxc3 {[%clk 0:02:53]}  O-O {[%clk 0:02:26]} 11. Be2 {[%clk 0:02:08]}  Qg6 {[%clk 0:02:21]} 12. Qd2 {[%clk 0:01:40]}  Na5 {[%clk 0:01:53]} 13. Ne5 {[%clk 0:01:36]}  Qxg2 {[%clk 0:01:51]} 14. O-O-O {[%clk 0:01:32]}  Qd5 {[%clk 0:01:46]} 15. Rdg1 {[%clk 0:01:22]}  Kh8 {[%clk 0:01:45]} 16. c4 {[%clk 0:00:53]}  Qd6 {[%clk 0:01:24]} 17. Qxa5 {[%clk 0:00:52]}  Qxd4 {[%clk 0:01:24]} 18. Nd3 {[%clk 0:00:27]}  Bxc4 {[%clk 0:01:18]} 19. Rg4 {[%clk 0:00:23]}  Qa1+ {[%clk 0:01:16]} 20. Kd2 {[%clk 0:00:24]}  Qxh1 {[%clk 0:01:15]} 21. Rxc4 {[%clk 0:00:24]}  Qxh2 {[%clk 0:01:10]} 22. Qxc7 {[%clk 0:00:21]}  Qh1 {[%clk 0:00:52]} 23. Rg4 {[%clk 0:00:19]}  Qd5 {[%clk 0:00:43]} 24. Qg3 {[%clk 0:00:17]}  Rg8 {[%clk 0:00:39]} 25. Qe5 {[%clk 0:00:13]}  Qd7 {[%clk 0:00:30]} 26. Qf4 {[%clk 0:00:12]}  Rad8 {[%clk 0:00:26]} 27. Kc1 {[%clk 0:00:12]}  Qe7 {[%clk 0:00:22]} 28. Kb2 {[%clk 0:00:12]}  Qxe2 {[%clk 0:00:22]} 29. Ne5 {[%clk 0:00:10]}  Qb5+ {[%clk 0:00:20]} 30. Kc1 {[%clk 0:00:10]}  Qf1+ {[%clk 0:00:19]} 31. Kb2 {[%clk 0:00:10]}  Qb5+ {[%clk 0:00:19]} 32. Kc1 {[%clk 0:00:10]}  Qd5 {[%clk 0:00:20]} 33. Qf5 {[%clk 0:00:09]}  Rgf8 {[%clk 0:00:14]} 34. Kb2 {[%clk 0:00:05]}  Qb5+ {[%clk 0:00:13]} 35. Ka2 {[%clk 0:00:05]}  Qd5+ {[%clk 0:00:14]} 36. Kb2 {[%clk 0:00:05]}  Rde8 {[%clk 0:00:14]} 37. Ng6+ {[%clk 0:00:05]}  fxg6 {[%clk 0:00:13]} 38. Qxd5 {[%clk 0:00:06]}  Rf6 {[%clk 0:00:13]} 39. Qd4 {[%clk 0:00:05]}  Rb6+ {[%clk 0:00:13]} 40. Kc1 {[%clk 0:00:06]}  Rc8 {[%clk 0:00:13]} 41. Kd2 {[%clk 0:00:05]}  Rbc6 {[%clk 0:00:13]} 42. Ke2 {[%clk 0:00:05]}  Rxc2+ {[%clk 0:00:13]} 43. Kf1 {[%clk 0:00:06]}  R2c6 {[%clk 0:00:12]} 44. Qd7 {[%clk 0:00:05]}  Rf8 {[%clk 0:00:10]} 45. Qxb7 {[%clk 0:00:04]}  Rcf6 {[%clk 0:00:10]} 46. Qxa7 {[%clk 0:00:04]}  Kh7 {[%clk 0:00:11]} 47. Qe3 {[%clk 0:00:03]}  Rf3 {[%clk 0:00:11]} 48. Qd4 {[%clk 0:00:02]}  Rxa3 {[%clk 0:00:08]} 49. Kg2 {[%clk 0:00:02]}  Ra6 {[%clk 0:00:08]} 50. Qe4 {[%clk 0:00:03]}  Raf6 {[%clk 0:00:08]} 51. Qd4 {[%clk 0:00:02]}  R8f7 {[%clk 0:00:08]} 52. Rg3 {[%clk 0:00:03]}  Rf8 {[%clk 0:00:09]} 53. Rd3 {[%clk 0:00:03]}  R8f7 {[%clk 0:00:09]} 54. Rc3 {[%clk 0:00:03]}  Rf8 {[%clk 0:00:09]} 55. Rc5 {[%clk 0:00:04]}  R8f7 {[%clk 0:00:09]} 56. Rd5 {[%clk 0:00:04]}  Rf4 {[%clk 0:00:09]} 57. Qc5 {[%clk 0:00:04]}  R4f6 {[%clk 0:00:08]} 58. Qd4 {[%clk 0:00:04]}  Rf4 {[%clk 0:00:09]} 59. Qd2 {[%clk 0:00:04]}  Rg4+ {[%clk 0:00:08]} 60. Kf1 {[%clk 0:00:05]}  Rgf4 {[%clk 0:00:08]} 61. Ke1 {[%clk 0:00:04]}  Re4+ {[%clk 0:00:08]} 62. Kd1 {[%clk 0:00:04]}  Ref4 {[%clk 0:00:09]} 63. Rd6 {[%clk 0:00:04]}  Rxf2 {[%clk 0:00:08]} 64. Qd3 {[%clk 0:00:05]}  Rf1+ {[%clk 0:00:08]} 65. Kc2 {[%clk 0:00:05]}  R7f2+ {[%clk 0:00:07]} 66. Kb3 {[%clk 0:00:03]}  Rf3 {[%clk 0:00:07]} 67. Kc4 {[%clk 0:00:03]}  Rxd3 {[%clk 0:00:07]} 68. Rxd3 {[%clk 0:00:04]}  Rf6 {[%clk 0:00:07]} 69. Kd4 {[%clk 0:00:05]}  g5 {[%clk 0:00:08]} 70. Ke5 {[%clk 0:00:05]}  Kg6 {[%clk 0:00:08]} 71. Rd7 {[%clk 0:00:03]}  h5 {[%clk 0:00:08]} 72. Rd1 {[%clk 0:00:01]}  h4 {[%clk 0:00:09]} 73. Rg1 {[%clk 0:00:02]}  Kh5 {[%clk 0:00:09]} 74. Rh1 {[%clk 0:00:02]}  g4 {[%clk 0:00:09]} 0-1


[Site "https://www.chess.com"]

[Event "Titled Tuesday Blitz July 26 Early 2022"]
[White "Ohanyan, Emin"]
[Black "Guzman, Christopher"]
[WhiteFideId "13312022"]
[BlackFideId "6405096"]
[WhiteElo "1927"]
[BlackElo "2244"]
[Result "1-0"]
[Round "04"]
[TimeControl "180+1"]
[Date "2022.07.26"]
[WhiteClock "0:00:06"]
[BlackClock "0:00:06"]

1. e4 {[%clk 0:02:56]}  c6 {[%clk 0:02:59]} 2. d4 {[%clk 0:02:56]}  d5 {[%clk 0:03:00]} 3. Nc3 {[%clk 0:02:57]}  dxe4 {[%clk 0:03:00]} 4. Nxe4 {[%clk 0:02:58]}  Nf6 {[%clk 0:03:01]} 5. Nxf6+ {[%clk 0:02:57]}  exf6 {[%clk 0:03:01]} 6. Bd3 {[%clk 0:02:58]}  Bd6 {[%clk 0:03:02]} 7. Qh5 {[%clk 0:02:58]}  g6 {[%clk 0:02:58]} 8. Qh6 {[%clk 0:02:59]}  Bf8 {[%clk 0:02:57]} 9. Qe3+ {[%clk 0:02:59]}  Qe7 {[%clk 0:02:57]} 10. Ne2 {[%clk 0:02:59]}  Qxe3 {[%clk 0:02:51]} 11. Bxe3 {[%clk 0:03:00]}  Bg7 {[%clk 0:02:52]} 12. h4 {[%clk 0:03:00]}  h5 {[%clk 0:02:52]} 13. O-O-O {[%clk 0:02:59]}  Nd7 {[%clk 0:02:51]} 14. c4 {[%clk 0:02:58]}  Nb6 {[%clk 0:02:51]} 15. Nc3 {[%clk 0:02:56]}  O-O {[%clk 0:02:48]} 16. c5 {[%clk 0:02:24]}  Nd5 {[%clk 0:02:28]} 17. Nxd5 {[%clk 0:02:24]}  cxd5 {[%clk 0:02:29]} 18. b4 {[%clk 0:02:16]}  Re8 {[%clk 0:02:25]} 19. Kd2 {[%clk 0:02:05]}  Bd7 {[%clk 0:02:19]} 20. Ra1 {[%clk 0:02:01]}  f5 {[%clk 0:02:07]} 21. f4 {[%clk 0:02:01]}  Bf6 {[%clk 0:02:05]} 22. Bf2 {[%clk 0:01:57]}  Ba4 {[%clk 0:01:52]} 23. Rhe1 {[%clk 0:01:34]}  a6 {[%clk 0:01:50]} 24. Rxe8+ {[%clk 0:01:33]}  Rxe8 {[%clk 0:01:51]} 25. Rc1 {[%clk 0:01:29]}  Kf8 {[%clk 0:01:46]} 26. Rc3 {[%clk 0:01:29]}  Bb5 {[%clk 0:01:34]} 27. g3 {[%clk 0:01:12]}  Re6 {[%clk 0:01:27]} 28. Ra3 {[%clk 0:00:44]}  Bc6 {[%clk 0:00:49]} 29. Rb3 {[%clk 0:00:40]}  Ba4 {[%clk 0:00:48]} 30. Ra3 {[%clk 0:00:40]}  Bc6 {[%clk 0:00:48]} 31. b5 {[%clk 0:00:35]}  axb5 {[%clk 0:00:47]} 32. Rb3 {[%clk 0:00:32]}  Ke8 {[%clk 0:00:43]} 33. Bxb5 {[%clk 0:00:32]}  Kd7 {[%clk 0:00:40]} 34. a4 {[%clk 0:00:32]}  Bd8 {[%clk 0:00:30]} 35. Be3 {[%clk 0:00:28]}  Ba5+ {[%clk 0:00:28]} 36. Kd3 {[%clk 0:00:29]}  Kc7 {[%clk 0:00:28]} 37. Rb1 {[%clk 0:00:25]}  Re8 {[%clk 0:00:25]} 38. Rb2 {[%clk 0:00:18]}  Be1 {[%clk 0:00:23]} 39. Rg2 {[%clk 0:00:18]}  Ba5 {[%clk 0:00:22]} 40. Bd2 {[%clk 0:00:17]}  Bxd2 {[%clk 0:00:21]} 41. Rxd2 {[%clk 0:00:17]}  Re4 {[%clk 0:00:21]} 42. Rd1 {[%clk 0:00:16]}  Bd7 {[%clk 0:00:20]} 43. Bxd7 {[%clk 0:00:16]}  Kxd7 {[%clk 0:00:20]} 44. Rb1 {[%clk 0:00:17]}  Kc7 {[%clk 0:00:20]} 45. Rb6 {[%clk 0:00:17]}  Re6 {[%clk 0:00:18]} 46. a5 {[%clk 0:00:15]}  Rc6 {[%clk 0:00:12]} 47. Kc3 {[%clk 0:00:15]}  Kb8 {[%clk 0:00:12]} 48. Kb4 {[%clk 0:00:14]}  Kc7 {[%clk 0:00:10]} 49. Kb5 {[%clk 0:00:14]}  Re6 {[%clk 0:00:10]} 50. Rxe6 {[%clk 0:00:02]}  fxe6 {[%clk 0:00:11]} 51. Kb4 {[%clk 0:00:02]}  Kc6 {[%clk 0:00:10]} 52. Ka4 {[%clk 0:00:02]}  Kd7 {[%clk 0:00:10]} 53. Kb5 {[%clk 0:00:03]}  Kc7 {[%clk 0:00:10]} 54. a6 {[%clk 0:00:03]}  bxa6+ {[%clk 0:00:11]} 55. Kxa6 {[%clk 0:00:04]}  Kc6 {[%clk 0:00:11]} 56. Ka5 {[%clk 0:00:04]}  Kc7 {[%clk 0:00:10]} 57. Kb5 {[%clk 0:00:04]}  Kb7 {[%clk 0:00:10]} 58. c6+ {[%clk 0:00:05]}  Kc8 {[%clk 0:00:11]} 59. Kb6 {[%clk 0:00:04]}  e5 {[%clk 0:00:05]} 60. fxe5 {[%clk 0:00:04]}  f4 {[%clk 0:00:05]} 61. gxf4 {[%clk 0:00:05]}  g5 {[%clk 0:00:06]} 62. fxg5 {[%clk 0:00:05]}  Kb8 {[%clk 0:00:05]} 63. Kc5 {[%clk 0:00:06]}  Kc7 {[%clk 0:00:06]} 1-0


[Site "https://www.chess.com"]

[Event "Titled Tuesday Blitz July 26 Early 2022"]
[White "Ozer, Omer Faruk"]
[Black "Drygalov, Andrey"]
[WhiteFideId "6354564"]
[BlackFideId "24171735"]
[WhiteElo "2050"]
[BlackElo "2531"]
[Result "0-1"]
[Round "04"]
[TimeControl "180+1"]
[Date "2022.07.26"]
[WhiteClock "0:00:10"]
[BlackClock "0:00:36"]

1. e4 {[%clk 0:02:55]}  c5 {[%clk 0:02:57]} 2. Nf3 {[%clk 0:02:55]}  d6 {[%clk 0:02:58]} 3. d4 {[%clk 0:02:55]}  cxd4 {[%clk 0:02:59]} 4. Nxd4 {[%clk 0:02:56]}  Nf6 {[%clk 0:03:00]} 5. Nc3 {[%clk 0:02:56]}  a6 {[%clk 0:03:00]} 6. Bc4 {[%clk 0:02:55]}  e6 {[%clk 0:03:00]} 7. Bb3 {[%clk 0:02:53]}  Nbd7 {[%clk 0:03:01]} 8. f4 {[%clk 0:02:53]}  Nc5 {[%clk 0:03:01]} 9. e5 {[%clk 0:02:53]}  Nfd7 {[%clk 0:02:59]} 10. O-O {[%clk 0:02:36]}  dxe5 {[%clk 0:02:55]} 11. fxe5 {[%clk 0:02:36]}  Nxe5 {[%clk 0:02:55]} 12. Kh1 {[%clk 0:02:30]}  Be7 {[%clk 0:02:53]} 13. Bf4 {[%clk 0:01:50]}  Ng6 {[%clk 0:02:51]} 14. Bg3 {[%clk 0:01:50]}  Nxb3 {[%clk 0:02:38]} 15. axb3 {[%clk 0:01:49]}  O-O {[%clk 0:02:29]} 16. Ndb5 {[%clk 0:01:46]}  Bd7 {[%clk 0:02:18]} 17. Nd6 {[%clk 0:01:39]}  Bc6 {[%clk 0:02:16]} 18. Qd3 {[%clk 0:01:30]}  Qd7 {[%clk 0:02:11]} 19. Rad1 {[%clk 0:01:28]}  Rad8 {[%clk 0:02:11]} 20. Qe3 {[%clk 0:01:26]}  Bxd6 {[%clk 0:01:42]} 21. Bxd6 {[%clk 0:01:24]}  Bxg2+ {[%clk 0:01:42]} 22. Kxg2 {[%clk 0:01:22]}  Qc6+ {[%clk 0:01:42]} 23. Ne4 {[%clk 0:01:22]}  Rfe8 {[%clk 0:01:42]} 24. Rd4 {[%clk 0:00:40]}  f5 {[%clk 0:01:40]} 25. Rc4 {[%clk 0:00:40]}  Qd5 {[%clk 0:01:03]} 26. Rd4 {[%clk 0:00:36]}  Qb5 {[%clk 0:01:03]} 27. c4 {[%clk 0:00:15]}  Qc6 {[%clk 0:01:03]} 28. Rfd1 {[%clk 0:00:15]}  e5 {[%clk 0:00:53]} 29. Rd5 {[%clk 0:00:14]}  fxe4 {[%clk 0:00:53]} 30. Kg3 {[%clk 0:00:14]}  Nf4 {[%clk 0:00:49]} 31. Rxe5 {[%clk 0:00:11]}  Rxe5 {[%clk 0:00:44]} 32. Qxf4 {[%clk 0:00:10]}  Rxd6 {[%clk 0:00:36]} 0-1


[Site "https://www.chess.com"]

[Event "Titled Tuesday Blitz July 26 Early 2022"]
[White "Pap, Gyula"]
[Black "Janaszak, Dawid"]
[WhiteFideId "725323"]
[BlackFideId "1119206"]
[WhiteElo "2553"]
[BlackElo "2199"]
[Result "1-0"]
[Round "04"]
[TimeControl "180+1"]
[Date "2022.07.26"]
[WhiteClock "0:00:05"]
[BlackClock "0:00:04"]

1. d4 {[%clk 0:03:00]}  Nf6 {[%clk 0:02:59]} 2. c4 {[%clk 0:03:01]}  c5 {[%clk 0:02:57]} 3. d5 {[%clk 0:03:00]}  b5 {[%clk 0:02:58]} 4. Qc2 {[%clk 0:03:01]}  b4 {[%clk 0:02:57]} 5. e4 {[%clk 0:03:00]}  d6 {[%clk 0:02:57]} 6. a3 {[%clk 0:03:01]}  g6 {[%clk 0:02:47]} 7. axb4 {[%clk 0:02:44]}  cxb4 {[%clk 0:02:48]} 8. Bd2 {[%clk 0:02:42]}  b3 {[%clk 0:02:19]} 9. Qxb3 {[%clk 0:02:29]}  Nxe4 {[%clk 0:02:19]} 10. Bc3 {[%clk 0:02:23]}  Nxc3 {[%clk 0:01:48]} 11. Qxc3 {[%clk 0:02:24]}  Rg8 {[%clk 0:01:48]} 12. c5 {[%clk 0:01:34]}  Bg7 {[%clk 0:01:45]} 13. Bb5+ {[%clk 0:01:23]}  Kf8 {[%clk 0:01:38]} 14. Qd2 {[%clk 0:01:17]}  dxc5 {[%clk 0:01:36]} 15. Ne2 {[%clk 0:01:17]}  Bb7 {[%clk 0:01:21]} 16. Nbc3 {[%clk 0:01:16]}  Nd7 {[%clk 0:01:21]} 17. O-O {[%clk 0:01:02]}  Nb6 {[%clk 0:01:20]} 18. Rfd1 {[%clk 0:01:03]}  Qc7 {[%clk 0:01:07]} 19. Qe3 {[%clk 0:00:33]}  a6 {[%clk 0:01:06]} 20. Bc6 {[%clk 0:00:34]}  Nc8 {[%clk 0:00:28]} 21. Qxc5 {[%clk 0:00:27]}  Nd6 {[%clk 0:00:28]} 22. Nd4 {[%clk 0:00:22]}  Bf6 {[%clk 0:00:25]} 23. b4 {[%clk 0:00:14]}  Kg7 {[%clk 0:00:26]} 24. Rac1 {[%clk 0:00:11]}  Rgb8 {[%clk 0:00:24]} 25. h3 {[%clk 0:00:07]}  Qd8 {[%clk 0:00:22]} 26. Na4 {[%clk 0:00:06]}  Bc8 {[%clk 0:00:17]} 27. Bxa8 {[%clk 0:00:06]}  Rxa8 {[%clk 0:00:18]} 28. Nc6 {[%clk 0:00:06]}  Qe8 {[%clk 0:00:16]} 29. Re1 {[%clk 0:00:06]}  Bb7 {[%clk 0:00:15]} 30. Nb6 {[%clk 0:00:06]}  Bxc6 {[%clk 0:00:13]} 31. dxc6 {[%clk 0:00:07]}  Ra7 {[%clk 0:00:11]} 32. Qxd6 {[%clk 0:00:06]}  Bb2 {[%clk 0:00:05]} 33. Qc5 {[%clk 0:00:04]}  Bxc1 {[%clk 0:00:05]} 34. Rxc1 {[%clk 0:00:05]}  e5 {[%clk 0:00:04]} 35. c7 {[%clk 0:00:05]} 1-0


[Site "https://www.chess.com"]

[Event "Titled Tuesday Blitz July 26 Early 2022"]
[White "Paravyan, David"]
[Black "Bryakin, Mikhail"]
[WhiteFideId "4194985"]
[BlackFideId "4165314"]
[WhiteElo "2569"]
[BlackElo "2422"]
[Result "0-1"]
[Round "04"]
[TimeControl "180+1"]
[Date "2022.07.26"]
[WhiteClock "0:00:12"]
[BlackClock "0:01:24"]

1. e4 {[%clk 0:02:55]}  c5 {[%clk 0:03:00]} 2. Nf3 {[%clk 0:02:55]}  d6 {[%clk 0:03:00]} 3. d4 {[%clk 0:02:54]}  Nf6 {[%clk 0:03:00]} 4. Nc3 {[%clk 0:02:54]}  cxd4 {[%clk 0:03:00]} 5. Nxd4 {[%clk 0:02:55]}  g6 {[%clk 0:03:01]} 6. Be3 {[%clk 0:02:50]}  Bg7 {[%clk 0:03:01]} 7. f3 {[%clk 0:02:51]}  O-O {[%clk 0:03:01]} 8. Qd2 {[%clk 0:02:51]}  d5 {[%clk 0:03:02]} 9. e5 {[%clk 0:02:47]}  Ne8 {[%clk 0:03:02]} 10. f4 {[%clk 0:02:47]}  f6 {[%clk 0:03:03]} 11. e6 {[%clk 0:02:28]}  f5 {[%clk 0:03:02]} 12. O-O-O {[%clk 0:02:26]}  Nf6 {[%clk 0:03:00]} 13. Nf3 {[%clk 0:02:21]}  Nc6 {[%clk 0:02:56]} 14. Nxd5 {[%clk 0:01:55]}  Nxd5 {[%clk 0:02:52]} 15. Qxd5 {[%clk 0:01:56]}  Qxd5 {[%clk 0:02:53]} 16. Rxd5 {[%clk 0:01:56]}  Bxe6 {[%clk 0:02:54]} 17. Bc4 {[%clk 0:01:51]}  Bxd5 {[%clk 0:02:51]} 18. Bxd5+ {[%clk 0:01:52]}  Kh8 {[%clk 0:02:52]} 19. Ng5 {[%clk 0:01:52]}  Bf6 {[%clk 0:02:29]} 20. Ne6 {[%clk 0:01:50]}  Rfc8 {[%clk 0:02:26]} 21. c3 {[%clk 0:01:37]}  Rab8 {[%clk 0:02:15]} 22. Rd1 {[%clk 0:01:20]}  b6 {[%clk 0:01:58]} 23. Bb3 {[%clk 0:01:16]}  Na5 {[%clk 0:01:47]} 24. Bd5 {[%clk 0:00:53]}  Nc4 {[%clk 0:01:37]} 25. Bxc4 {[%clk 0:00:53]}  Rxc4 {[%clk 0:01:38]} 26. Rd7 {[%clk 0:00:53]}  Re4 {[%clk 0:01:37]} 27. Kd2 {[%clk 0:00:23]}  Rxe6 {[%clk 0:01:35]} 28. Rxa7 {[%clk 0:00:24]}  b5 {[%clk 0:01:28]} 29. Bc5 {[%clk 0:00:24]}  Kg8 {[%clk 0:01:27]} 30. g3 {[%clk 0:00:23]}  Kf7 {[%clk 0:01:27]} 31. Rd7 {[%clk 0:00:21]}  h6 {[%clk 0:01:27]} 32. a3 {[%clk 0:00:19]}  g5 {[%clk 0:01:27]} 33. Be3 {[%clk 0:00:13]}  Re4 {[%clk 0:01:26]} 34. Kd3 {[%clk 0:00:13]}  Re6 {[%clk 0:01:25]} 35. Rd5 {[%clk 0:00:12]}  Rd6 {[%clk 0:01:24]} 0-1


[Site "https://www.chess.com"]

[Event "Titled Tuesday Blitz July 26 Early 2022"]
[White "Shimanov, Aleksandr"]
[Black "Djokic, Mihailo"]
[WhiteFideId "4198603"]
[BlackFideId "976440"]
[WhiteElo "2605"]
[BlackElo "2246"]
[Result "1-0"]
[Round "04"]
[TimeControl "180+1"]
[Date "2022.07.26"]
[WhiteClock "0:00:41"]
[BlackClock "0:00:03"]

1. e4 {[%clk 0:03:00]}  c5 {[%clk 0:02:59]} 2. Nf3 {[%clk 0:03:00]}  d6 {[%clk 0:03:00]} 3. d4 {[%clk 0:03:00]}  cxd4 {[%clk 0:03:01]} 4. Qxd4 {[%clk 0:03:01]}  a6 {[%clk 0:03:01]} 5. b3 {[%clk 0:02:28]}  Nc6 {[%clk 0:03:00]} 6. Qd2 {[%clk 0:02:28]}  Bg4 {[%clk 0:02:55]} 7. Bb2 {[%clk 0:02:27]}  Nf6 {[%clk 0:02:52]} 8. Nc3 {[%clk 0:02:27]}  Rc8 {[%clk 0:02:43]} 9. O-O-O {[%clk 0:02:20]}  Qa5 {[%clk 0:02:42]} 10. Kb1 {[%clk 0:02:12]}  g6 {[%clk 0:02:38]} 11. Nd5 {[%clk 0:02:04]}  Qxd2 {[%clk 0:02:38]} 12. Rxd2 {[%clk 0:02:04]}  Bxf3 {[%clk 0:02:03]} 13. Nxf6+ {[%clk 0:01:55]}  exf6 {[%clk 0:02:01]} 14. Bxf6 {[%clk 0:01:56]}  Bxg2 {[%clk 0:01:33]} 15. Bxg2 {[%clk 0:01:56]}  Rg8 {[%clk 0:01:34]} 16. Rhd1 {[%clk 0:01:51]}  Rc7 {[%clk 0:01:05]} 17. f4 {[%clk 0:01:42]}  Be7 {[%clk 0:00:47]} 18. Bxe7 {[%clk 0:01:42]}  Kxe7 {[%clk 0:00:47]} 19. Rxd6 {[%clk 0:01:42]}  Rd8 {[%clk 0:00:48]} 20. e5 {[%clk 0:01:43]}  Rcd7 {[%clk 0:00:34]} 21. Bxc6 {[%clk 0:01:10]}  bxc6 {[%clk 0:00:32]} 22. Rxd7+ {[%clk 0:01:06]}  Rxd7 {[%clk 0:00:33]} 23. Rxd7+ {[%clk 0:01:07]}  Kxd7 {[%clk 0:00:34]} 24. Kc1 {[%clk 0:00:55]}  Ke6 {[%clk 0:00:18]} 25. Kd2 {[%clk 0:00:55]}  Kf5 {[%clk 0:00:14]} 26. Ke3 {[%clk 0:00:55]}  g5 {[%clk 0:00:12]} 27. fxg5 {[%clk 0:00:54]}  Kxe5 {[%clk 0:00:13]} 28. b4 {[%clk 0:00:52]}  Kf5 {[%clk 0:00:13]} 29. h4 {[%clk 0:00:45]}  Kg4 {[%clk 0:00:13]} 30. c4 {[%clk 0:00:45]}  Kxh4 {[%clk 0:00:13]} 31. Kf4 {[%clk 0:00:45]}  Kh5 {[%clk 0:00:10]} 32. a4 {[%clk 0:00:44]}  Kg6 {[%clk 0:00:02]} 33. b5 {[%clk 0:00:43]}  cxb5 {[%clk 0:00:02]} 34. cxb5 {[%clk 0:00:43]}  axb5 {[%clk 0:00:03]} 35. axb5 {[%clk 0:00:41]} 1-0


[Site "https://www.chess.com"]

[Event "Titled Tuesday Blitz July 26 Early 2022"]
[White "Shohat, Yotam"]
[Black "Meshkovs, Nikita"]
[WhiteFideId "2813955"]
[BlackFideId "11602740"]
[WhiteElo "2119"]
[BlackElo "2506"]
[Result "0-1"]
[Round "04"]
[TimeControl "180+1"]
[Date "2022.07.26"]
[WhiteClock "0:00:01"]
[BlackClock "0:00:03"]

1. Nf3 {[%clk 0:03:00]}  d5 {[%clk 0:02:59]} 2. g3 {[%clk 0:02:58]}  Nf6 {[%clk 0:03:00]} 3. Bg2 {[%clk 0:02:58]}  e6 {[%clk 0:03:00]} 4. O-O {[%clk 0:02:59]}  Be7 {[%clk 0:03:01]} 5. c4 {[%clk 0:02:57]}  O-O {[%clk 0:03:01]} 6. b3 {[%clk 0:02:57]}  a5 {[%clk 0:03:01]} 7. Nc3 {[%clk 0:02:39]}  d4 {[%clk 0:03:00]} 8. Nb5 {[%clk 0:02:38]}  Nc6 {[%clk 0:02:53]} 9. e3 {[%clk 0:02:15]}  dxe3 {[%clk 0:02:32]} 10. dxe3 {[%clk 0:02:04]}  Bd7 {[%clk 0:02:21]} 11. a3 {[%clk 0:01:42]}  Qc8 {[%clk 0:02:11]} 12. Bb2 {[%clk 0:01:40]}  Rd8 {[%clk 0:02:11]} 13. Qc2 {[%clk 0:01:34]}  Be8 {[%clk 0:01:51]} 14. Ng5 {[%clk 0:01:24]}  h6 {[%clk 0:01:33]} 15. Ne4 {[%clk 0:00:57]}  Nd7 {[%clk 0:01:25]} 16. Rad1 {[%clk 0:00:45]}  f6 {[%clk 0:01:15]} 17. Rd2 {[%clk 0:00:36]}  Nf8 {[%clk 0:01:08]} 18. Rfd1 {[%clk 0:00:34]}  Rxd2 {[%clk 0:01:07]} 19. Rxd2 {[%clk 0:00:33]}  Nd8 {[%clk 0:01:05]} 20. Qc3 {[%clk 0:00:18]}  Nf7 {[%clk 0:00:55]} 21. Rd1 {[%clk 0:00:15]}  Qb8 {[%clk 0:00:53]} 22. h4 {[%clk 0:00:14]}  Bd7 {[%clk 0:00:46]} 23. a4 {[%clk 0:00:13]}  c6 {[%clk 0:00:46]} 24. Nd4 {[%clk 0:00:08]}  e5 {[%clk 0:00:46]} 25. Nf3 {[%clk 0:00:04]}  Bf5 {[%clk 0:00:42]} 26. Ned2 {[%clk 0:00:03]}  Bb4 {[%clk 0:00:42]} 27. Qc1 {[%clk 0:00:03]}  Qc8 {[%clk 0:00:35]} 28. Bc3 {[%clk 0:00:03]}  Be7 {[%clk 0:00:31]} 29. Nf1 {[%clk 0:00:03]}  h5 {[%clk 0:00:25]} 30. Qb2 {[%clk 0:00:03]}  Ne6 {[%clk 0:00:24]} 31. N3d2 {[%clk 0:00:03]}  Nc5 {[%clk 0:00:24]} 32. e4 {[%clk 0:00:02]}  Bh3 {[%clk 0:00:18]} 33. Ne3 {[%clk 0:00:03]}  Bxg2 {[%clk 0:00:16]} 34. Kxg2 {[%clk 0:00:04]}  Nd6 {[%clk 0:00:17]} 35. Qc2 {[%clk 0:00:04]}  Qe6 {[%clk 0:00:14]} 36. f3 {[%clk 0:00:04]}  b6 {[%clk 0:00:11]} 37. Ndf1 {[%clk 0:00:04]}  g6 {[%clk 0:00:09]} 38. Rd2 {[%clk 0:00:03]}  Rf8 {[%clk 0:00:09]} 39. Qd1 {[%clk 0:00:04]}  f5 {[%clk 0:00:09]} 40. exf5 {[%clk 0:00:04]}  gxf5 {[%clk 0:00:10]} 41. Nc2 {[%clk 0:00:02]}  f4 {[%clk 0:00:09]} 42. gxf4 {[%clk 0:00:01]}  Rxf4 {[%clk 0:00:10]} 43. Ng3 {[%clk 0:00:01]}  Bxh4 {[%clk 0:00:10]} 44. Ne4 {[%clk 0:00:01]}  Ndxe4 {[%clk 0:00:09]} 45. fxe4 {[%clk 0:00:02]}  Qg6+ {[%clk 0:00:08]} 46. Kh1 {[%clk 0:00:03]}  Nxe4 {[%clk 0:00:08]} 47. Rg2 {[%clk 0:00:03]}  Ng3+ {[%clk 0:00:08]} 48. Kh2 {[%clk 0:00:02]}  Kh7 {[%clk 0:00:05]} 49. Bxe5 {[%clk 0:00:02]}  Rg4 {[%clk 0:00:04]} 50. Qd7+ {[%clk 0:00:02]}  Kh6 {[%clk 0:00:04]} 51. Bxg3 {[%clk 0:00:01]}  Bxg3+ {[%clk 0:00:04]} 52. Kh3 {[%clk 0:00:01]}  Rh4# {[%clk 0:00:03]} 0-1


[Site "https://www.chess.com"]